[Event "Titled Tuesday Blitz October 11 Late 2022"]
[White "Przybylski, Wojciech"]
[Black "Tanenbaum, Zachary"]
[WhiteFideId "1117599"]
[BlackFideId "2060850"]
[WhiteElo "2221"]
[BlackElo "2175"]
[Result "0-1"]
[Round "05"]
[TimeControl "180+1"]
[Date "2022.10.12"]
[WhiteClock "0:00:05"]
[BlackClock "0:00:22"]

1. e4 {[%clk 0:02:54]}  e5 {[%clk 0:03:00]} 2. Nf3 {[%clk 0:02:53]}  Nc6 {[%clk 0:03:00]} 3. Bb5 {[%clk 0:02:52]}  a6 {[%clk 0:03:01]} 4. Ba4 {[%clk 0:02:52]}  d6 {[%clk 0:03:02]} 5. h3 {[%clk 0:02:52]}  Nf6 {[%clk 0:03:02]} 6. d3 {[%clk 0:02:51]}  b5 {[%clk 0:03:03]} 7. Bb3 {[%clk 0:02:51]}  Na5 {[%clk 0:03:04]} 8. O-O {[%clk 0:02:51]}  Be7 {[%clk 0:03:03]} 9. Be3 {[%clk 0:02:49]}  O-O {[%clk 0:03:03]} 10. c4 {[%clk 0:02:47]}  Nxb3 {[%clk 0:03:03]} 11. axb3 {[%clk 0:02:47]}  Bb7 {[%clk 0:03:03]} 12. Nc3 {[%clk 0:02:46]}  Qd7 {[%clk 0:02:55]} 13. Nd2 {[%clk 0:02:41]}  b4 {[%clk 0:02:17]} 14. Ne2 {[%clk 0:02:36]}  Nh5 {[%clk 0:02:14]} 15. f4 {[%clk 0:02:33]}  exf4 {[%clk 0:02:06]} 16. Nxf4 {[%clk 0:02:32]}  Nxf4 {[%clk 0:02:06]} 17. Rxf4 {[%clk 0:02:21]}  f5 {[%clk 0:02:07]} 18. exf5 {[%clk 0:02:14]}  Bg5 {[%clk 0:02:07]} 19. g4 {[%clk 0:01:46]}  Qe7 {[%clk 0:01:48]} 20. Nf1 {[%clk 0:01:12]}  Bxf4 {[%clk 0:01:41]} 21. Bxf4 {[%clk 0:01:11]}  Qh4 {[%clk 0:01:42]} 22. d4 {[%clk 0:00:59]}  Qxh3 {[%clk 0:01:18]} 23. d5 {[%clk 0:00:57]}  Rae8 {[%clk 0:01:18]} 24. Ng3 {[%clk 0:00:43]}  g5 {[%clk 0:00:40]} 25. Qf3 {[%clk 0:00:29]}  gxf4 {[%clk 0:00:38]} 26. Qxf4 {[%clk 0:00:29]}  Re7 {[%clk 0:00:33]} 27. Rf1 {[%clk 0:00:20]}  Rg7 {[%clk 0:00:30]} 28. g5 {[%clk 0:00:20]}  Bc8 {[%clk 0:00:24]} 29. f6 {[%clk 0:00:18]}  Rxf6 {[%clk 0:00:24]} 30. gxf6 {[%clk 0:00:06]}  Qxg3+ {[%clk 0:00:24]} 31. Qxg3 {[%clk 0:00:05]}  Rxg3+ {[%clk 0:00:25]} 32. Kf2 {[%clk 0:00:04]}  Rxb3 {[%clk 0:00:24]} 33. Re1 {[%clk 0:00:04]}  Rxb2+ {[%clk 0:00:20]} 34. Kg3 {[%clk 0:00:04]}  Kf7 {[%clk 0:00:21]} 35. Re7+ {[%clk 0:00:04]}  Kxf6 {[%clk 0:00:21]} 36. Rxc7 {[%clk 0:00:05]}  Bf5 {[%clk 0:00:20]} 37. Rc6 {[%clk 0:00:05]}  Ke5 {[%clk 0:00:20]} 38. c5 {[%clk 0:00:05]}  dxc5 {[%clk 0:00:20]} 39. Rxc5 {[%clk 0:00:05]}  Rc2 {[%clk 0:00:19]} 40. Ra5 {[%clk 0:00:05]}  b3 {[%clk 0:00:19]} 41. Rxa6 {[%clk 0:00:05]}  b2 {[%clk 0:00:20]} 42. Rb6 {[%clk 0:00:06]}  b1=Q {[%clk 0:00:20]} 43. Rxb1 {[%clk 0:00:05]}  Rc3+ {[%clk 0:00:21]} 44. Kh4 {[%clk 0:00:06]}  Rh3+ {[%clk 0:00:21]} 45. Kg5 {[%clk 0:00:05]}  h6# {[%clk 0:00:22]} 0-1


[Site "https://www.chess.com"]

[Event "Titled Tuesday Blitz October 11 Late 2022"]
[White "Roberson, Peter T"]
[Black "Ernst, Sipke"]
[WhiteFideId "412384"]
[BlackFideId "1004689"]
[WhiteElo "2346"]
[BlackElo "2438"]
[Result "1-0"]
[Round "05"]
[TimeControl "180+1"]
[Date "2022.10.12"]
[WhiteClock "0:00:07"]
[BlackClock "0:00:16"]

1. d4 {[%clk 0:03:00]}  Nf6 {[%clk 0:02:59]} 2. c4 {[%clk 0:03:00]}  g6 {[%clk 0:02:59]} 3. Nf3 {[%clk 0:02:55]}  Bg7 {[%clk 0:02:59]} 4. g3 {[%clk 0:02:56]}  O-O {[%clk 0:02:59]} 5. Bg2 {[%clk 0:02:56]}  c5 {[%clk 0:02:59]} 6. d5 {[%clk 0:02:56]}  e6 {[%clk 0:02:57]} 7. Nc3 {[%clk 0:02:54]}  exd5 {[%clk 0:02:57]} 8. cxd5 {[%clk 0:02:55]}  d6 {[%clk 0:02:58]} 9. O-O {[%clk 0:02:55]}  Re8 {[%clk 0:02:56]} 10. Nd2 {[%clk 0:02:54]}  a6 {[%clk 0:02:55]} 11. a4 {[%clk 0:02:54]}  Nbd7 {[%clk 0:02:55]} 12. h3 {[%clk 0:02:50]}  b6 {[%clk 0:02:52]} 13. Nc4 {[%clk 0:02:47]}  Ne5 {[%clk 0:02:52]} 14. Na3 {[%clk 0:02:48]}  b5 {[%clk 0:02:52]} 15. axb5 {[%clk 0:02:45]}  axb5 {[%clk 0:02:52]} 16. Ncxb5 {[%clk 0:02:44]}  Ba6 {[%clk 0:02:46]} 17. Nc3 {[%clk 0:02:39]}  Nh5 {[%clk 0:02:40]} 18. Kh2 {[%clk 0:02:33]}  f5 {[%clk 0:02:39]} 19. f4 {[%clk 0:02:31]}  Nf7 {[%clk 0:02:26]} 20. Re1 {[%clk 0:02:19]}  Re7 {[%clk 0:02:01]} 21. Bd2 {[%clk 0:02:10]}  Qe8 {[%clk 0:01:50]} 22. e4 {[%clk 0:01:59]}  Bd4 {[%clk 0:01:50]} 23. Be3 {[%clk 0:01:46]}  Bxc3 {[%clk 0:01:50]} 24. bxc3 {[%clk 0:01:46]}  Nf6 {[%clk 0:01:50]} 25. e5 {[%clk 0:01:37]}  Nh5 {[%clk 0:01:37]} 26. e6 {[%clk 0:01:34]}  Nh6 {[%clk 0:01:35]} 27. c4 {[%clk 0:01:33]}  Nf6 {[%clk 0:01:34]} 28. Qc2 {[%clk 0:01:31]}  Rea7 {[%clk 0:01:32]} 29. Qc3 {[%clk 0:01:28]}  Qe7 {[%clk 0:01:31]} 30. Nc2 {[%clk 0:01:25]}  Bc8 {[%clk 0:01:18]} 31. Rxa7 {[%clk 0:01:25]}  Rxa7 {[%clk 0:01:19]} 32. Bc1 {[%clk 0:01:22]}  Ra2 {[%clk 0:01:16]} 33. Bb2 {[%clk 0:01:20]}  Kg7 {[%clk 0:01:13]} 34. Ra1 {[%clk 0:01:15]}  Rxa1 {[%clk 0:01:12]} 35. Nxa1 {[%clk 0:01:13]}  Ng8 {[%clk 0:01:13]} 36. Nb3 {[%clk 0:00:57]}  Qa7 {[%clk 0:01:11]} 37. Na5 {[%clk 0:00:44]}  Kf8 {[%clk 0:01:09]} 38. g4 {[%clk 0:00:36]}  fxg4 {[%clk 0:01:09]} 39. hxg4 {[%clk 0:00:36]}  Nxg4+ {[%clk 0:01:09]} 40. Kg3 {[%clk 0:00:37]}  N4f6 {[%clk 0:01:09]} 41. Nc6 {[%clk 0:00:34]}  Qa4 {[%clk 0:01:01]} 42. Bf3 {[%clk 0:00:33]}  Ke8 {[%clk 0:00:57]} 43. f5 {[%clk 0:00:18]}  Ba6 {[%clk 0:00:49]} 44. fxg6 {[%clk 0:00:17]}  h6 {[%clk 0:00:34]} 45. Qa5 {[%clk 0:00:12]}  Qxa5 {[%clk 0:00:31]} 46. Nxa5 {[%clk 0:00:13]}  Kf8 {[%clk 0:00:27]} 47. Be2 {[%clk 0:00:07]}  Ne4+ {[%clk 0:00:22]} 48. Kf4 {[%clk 0:00:06]}  Nd2 {[%clk 0:00:21]} 49. Ke3 {[%clk 0:00:07]}  Nb1 {[%clk 0:00:19]} 50. Bd3 {[%clk 0:00:06]}  h5 {[%clk 0:00:18]} 51. Bxb1 {[%clk 0:00:06]}  Ne7 {[%clk 0:00:19]} 52. g7+ {[%clk 0:00:06]}  Kg8 {[%clk 0:00:18]} 53. Kf4 {[%clk 0:00:07]}  Bxc4 {[%clk 0:00:15]} 54. Nxc4 {[%clk 0:00:07]}  Nxd5+ {[%clk 0:00:16]} 55. Kg5 {[%clk 0:00:07]}  h4 {[%clk 0:00:15]} 56. Kxh4 {[%clk 0:00:05]}  Nf4 {[%clk 0:00:14]} 57. e7 {[%clk 0:00:05]}  Ng6+ {[%clk 0:00:14]} 58. Kg5 {[%clk 0:00:05]}  Nxe7 {[%clk 0:00:15]} 59. Kh6 {[%clk 0:00:05]}  d5 {[%clk 0:00:15]} 60. Bh7+ {[%clk 0:00:05]}  Kf7 {[%clk 0:00:14]} 61. Nd6+ {[%clk 0:00:05]}  Ke6 {[%clk 0:00:14]} 62. Nc8 {[%clk 0:00:04]}  Nxc8 {[%clk 0:00:12]} 63. g8=Q+ {[%clk 0:00:04]}  Kd7 {[%clk 0:00:13]} 64. Bf5+ {[%clk 0:00:04]}  Kd6 {[%clk 0:00:14]} 65. Qxc8 {[%clk 0:00:05]}  d4 {[%clk 0:00:14]} 66. Qd7+ {[%clk 0:00:06]}  Ke5 {[%clk 0:00:14]} 67. Qe6+ {[%clk 0:00:07]}  Kf4 {[%clk 0:00:15]} 68. Qe4+ {[%clk 0:00:08]}  Kg3 {[%clk 0:00:15]} 69. Bc1 {[%clk 0:00:07]}  Kf2 {[%clk 0:00:15]} 70. Bg4 {[%clk 0:00:07]}  c4 {[%clk 0:00:16]} 71. Qf3+ {[%clk 0:00:07]}  Ke1 {[%clk 0:00:16]} 72. Qe2# {[%clk 0:00:07]} 1-0


[Site "https://www.chess.com"]

[Event "Titled Tuesday Blitz October 11 Late 2022"]
[White "Rodrigue-Lemieux, Shawn"]
[Black "Gardezi, Arsal"]
[WhiteFideId "2620049"]
[BlackFideId "30949521"]
[WhiteElo "2382"]
[BlackElo "1906"]
[Result "1-0"]
[Round "05"]
[TimeControl "180+1"]
[Date "2022.10.12"]
[WhiteClock "0:01:56"]
[BlackClock "0:00:59"]

1. d4 {[%clk 0:02:59]}  d5 {[%clk 0:02:58]} 2. Nf3 {[%clk 0:02:57]}  Nf6 {[%clk 0:02:54]} 3. Bf4 {[%clk 0:02:56]}  Bf5 {[%clk 0:02:53]} 4. e3 {[%clk 0:02:56]}  Nc6 {[%clk 0:02:52]} 5. Bd3 {[%clk 0:02:52]}  Bg6 {[%clk 0:02:51]} 6. O-O {[%clk 0:02:51]}  e6 {[%clk 0:02:51]} 7. c4 {[%clk 0:02:50]}  Bd6 {[%clk 0:02:46]} 8. Bxd6 {[%clk 0:02:49]}  Qxd6 {[%clk 0:02:45]} 9. Nc3 {[%clk 0:02:49]}  O-O {[%clk 0:02:44]} 10. Rc1 {[%clk 0:02:48]}  a6 {[%clk 0:02:37]} 11. a3 {[%clk 0:02:47]}  dxc4 {[%clk 0:02:34]} 12. Bxc4 {[%clk 0:02:46]}  e5 {[%clk 0:02:19]} 13. dxe5 {[%clk 0:02:40]}  Nxe5 {[%clk 0:02:19]} 14. Qxd6 {[%clk 0:02:37]}  cxd6 {[%clk 0:02:19]} 15. Nd5 {[%clk 0:02:30]}  Nxc4 {[%clk 0:01:53]} 16. Nxf6+ {[%clk 0:02:29]}  gxf6 {[%clk 0:01:53]} 17. Rxc4 {[%clk 0:02:30]}  h5 {[%clk 0:01:48]} 18. Rd4 {[%clk 0:02:27]}  Rac8 {[%clk 0:01:44]} 19. Rxd6 {[%clk 0:02:26]}  Rc2 {[%clk 0:01:44]} 20. Rb6 {[%clk 0:02:22]}  Be4 {[%clk 0:01:42]} 21. Nd4 {[%clk 0:02:22]}  Rd2 {[%clk 0:01:42]} 22. f3 {[%clk 0:02:21]}  Bd5 {[%clk 0:01:41]} 23. h4 {[%clk 0:02:20]}  Re8 {[%clk 0:01:39]} 24. Nf5 {[%clk 0:02:18]}  Kh7 {[%clk 0:01:33]} 25. Rf2 {[%clk 0:02:15]}  Rd1+ {[%clk 0:01:30]} 26. Kh2 {[%clk 0:02:16]}  Kg6 {[%clk 0:01:29]} 27. e4 {[%clk 0:02:12]}  Bc6 {[%clk 0:01:25]} 28. Rc2 {[%clk 0:02:08]}  Rb1 {[%clk 0:01:21]} 29. Kg3 {[%clk 0:02:06]}  Rd8 {[%clk 0:01:16]} 30. Ne7+ {[%clk 0:02:05]}  Kg7 {[%clk 0:01:12]} 31. Nxc6 {[%clk 0:02:06]}  bxc6 {[%clk 0:01:13]} 32. Rcxc6 {[%clk 0:02:05]}  a5 {[%clk 0:01:13]} 33. Rxf6 {[%clk 0:02:05]}  Rd2 {[%clk 0:01:13]} 34. Rf5 {[%clk 0:02:01]}  Rg1 {[%clk 0:01:10]} 35. Rg5+ {[%clk 0:02:00]}  Kf8 {[%clk 0:01:09]} 36. Kh2 {[%clk 0:01:58]}  Rb1 {[%clk 0:01:07]} 37. Rxa5 {[%clk 0:01:57]}  Ke7 {[%clk 0:00:59]} 38. Rxh5 {[%clk 0:01:56]} 1-0


[Site "https://www.chess.com"]

[Event "Titled Tuesday Blitz October 11 Late 2022"]
[White "Rose, Felix"]
[Black "Owen, Michael"]
[WhiteFideId "5105722"]
[BlackFideId "7104820"]
[WhiteElo "2039"]
[BlackElo "1943"]
[Result "1-0"]
[Round "05"]
[TimeControl "180+1"]
[Date "2022.10.12"]
[WhiteClock "0:01:02"]
[BlackClock "0:00:01"]

1. e4 {[%clk 0:02:59]}  c5 {[%clk 0:02:56]} 2. Nf3 {[%clk 0:02:59]}  d6 {[%clk 0:02:56]} 3. d4 {[%clk 0:03:00]}  cxd4 {[%clk 0:02:57]} 4. Nxd4 {[%clk 0:03:00]}  Nf6 {[%clk 0:02:58]} 5. Nc3 {[%clk 0:03:01]}  a6 {[%clk 0:02:58]} 6. Be3 {[%clk 0:03:01]}  e5 {[%clk 0:02:58]} 7. Nb3 {[%clk 0:03:02]}  Be6 {[%clk 0:02:59]} 8. f3 {[%clk 0:03:02]}  Be7 {[%clk 0:02:59]} 9. Qd2 {[%clk 0:03:03]}  O-O {[%clk 0:02:59]} 10. O-O-O {[%clk 0:03:04]}  Nbd7 {[%clk 0:02:59]} 11. g4 {[%clk 0:03:04]}  b5 {[%clk 0:03:00]} 12. g5 {[%clk 0:03:05]}  b4 {[%clk 0:02:59]} 13. gxf6 {[%clk 0:03:05]}  bxc3 {[%clk 0:02:56]} 14. Qxc3 {[%clk 0:03:06]}  Nxf6 {[%clk 0:02:55]} 15. Na5 {[%clk 0:03:06]}  Qd7 {[%clk 0:01:24]} 16. Nc6 {[%clk 0:03:04]}  Rfc8 {[%clk 0:01:23]} 17. Nxe7+ {[%clk 0:03:04]}  Qxe7 {[%clk 0:01:23]} 18. Qa5 {[%clk 0:03:03]}  d5 {[%clk 0:01:23]} 19. exd5 {[%clk 0:03:02]}  Nxd5 {[%clk 0:01:23]} 20. Rxd5 {[%clk 0:03:01]}  Bxd5 {[%clk 0:01:20]} 21. Qxd5 {[%clk 0:03:00]}  Rd8 {[%clk 0:01:15]} 22. Qe4 {[%clk 0:02:53]}  g6 {[%clk 0:00:54]} 23. Bd3 {[%clk 0:02:51]}  f5 {[%clk 0:00:53]} 24. Qc4+ {[%clk 0:02:50]}  Kg7 {[%clk 0:00:53]} 25. h4 {[%clk 0:02:45]}  Rac8 {[%clk 0:00:49]} 26. Qb3 {[%clk 0:02:33]}  a5 {[%clk 0:00:47]} 27. Bg5 {[%clk 0:02:31]}  a4 {[%clk 0:00:35]} 28. Bxe7 {[%clk 0:02:09]}  axb3 {[%clk 0:00:35]} 29. Bxd8 {[%clk 0:02:09]}  bxa2 {[%clk 0:00:34]} 30. Kd2 {[%clk 0:02:07]}  Rxd8 {[%clk 0:00:32]} 31. Ke3 {[%clk 0:01:54]}  Ra8 {[%clk 0:00:30]} 32. Ra1 {[%clk 0:01:54]}  Ra4 {[%clk 0:00:30]} 33. c3 {[%clk 0:01:48]}  Kf6 {[%clk 0:00:26]} 34. Bc2 {[%clk 0:01:48]}  Ra7 {[%clk 0:00:19]} 35. b4 {[%clk 0:01:44]}  Ra3 {[%clk 0:00:19]} 36. Kd2 {[%clk 0:01:44]}  h6 {[%clk 0:00:18]} 37. b5 {[%clk 0:01:42]}  Ke6 {[%clk 0:00:17]} 38. Bd3 {[%clk 0:01:29]}  Kd5 {[%clk 0:00:16]} 39. Kc2 {[%clk 0:01:28]}  e4 {[%clk 0:00:15]} 40. fxe4+ {[%clk 0:01:29]}  fxe4 {[%clk 0:00:16]} 41. Kb2 {[%clk 0:01:26]}  Ra7 {[%clk 0:00:13]} 42. Be2 {[%clk 0:01:26]}  Rf7 {[%clk 0:00:12]} 43. Rxa2 {[%clk 0:01:26]}  Rf2 {[%clk 0:00:12]} 44. Kb3 {[%clk 0:01:27]}  Kc5 {[%clk 0:00:13]} 45. Rd2 {[%clk 0:01:17]}  e3 {[%clk 0:00:12]} 46. Ra2 {[%clk 0:01:16]}  g5 {[%clk 0:00:12]} 47. hxg5 {[%clk 0:01:15]}  hxg5 {[%clk 0:00:13]} 48. c4 {[%clk 0:01:16]}  Rg2 {[%clk 0:00:10]} 49. Bh5 {[%clk 0:01:10]}  Rg3 {[%clk 0:00:10]} 50. Re2 {[%clk 0:01:08]}  g4 {[%clk 0:00:08]} 51. Kc3 {[%clk 0:01:07]}  Rg1 {[%clk 0:00:03]} 52. Kd3 {[%clk 0:01:06]}  Rc1 {[%clk 0:00:02]} 53. Bf7 {[%clk 0:01:02]}  g3 {[%clk 0:00:01]} 54. Kxe3 {[%clk 0:01:02]}  Rc3+ {[%clk 0:00:01]} 55. Kf4 {[%clk 0:01:02]} 1-0


[Site "https://www.chess.com"]

[Event "Titled Tuesday Blitz October 11 Late 2022"]
[White "Rosenberg, Evan S"]
[Black "Machidon, Cristi"]
[WhiteFideId "2019299"]
[BlackFideId "13904590"]
[WhiteElo "2346"]
[BlackElo "2312"]
[Result "0-1"]
[Round "05"]
[TimeControl "180+1"]
[Date "2022.10.12"]
[WhiteClock "0:00:12"]
[BlackClock "0:01:33"]

1. d4 {[%clk 0:02:59]}  Nf6 {[%clk 0:02:59]} 2. Nf3 {[%clk 0:02:59]}  e6 {[%clk 0:02:59]} 3. c4 {[%clk 0:02:56]}  Bb4+ {[%clk 0:02:58]} 4. Nc3 {[%clk 0:02:56]}  O-O {[%clk 0:02:58]} 5. g3 {[%clk 0:02:51]}  c5 {[%clk 0:02:53]} 6. Bg2 {[%clk 0:02:48]}  d5 {[%clk 0:02:50]} 7. O-O {[%clk 0:02:42]}  dxc4 {[%clk 0:02:50]} 8. Bg5 {[%clk 0:02:21]}  Nc6 {[%clk 0:02:36]} 9. e3 {[%clk 0:02:09]}  cxd4 {[%clk 0:02:33]} 10. exd4 {[%clk 0:02:07]}  h6 {[%clk 0:02:31]} 11. Bxf6 {[%clk 0:01:57]}  Qxf6 {[%clk 0:02:31]} 12. d5 {[%clk 0:01:58]}  Bxc3 {[%clk 0:02:29]} 13. bxc3 {[%clk 0:01:51]}  exd5 {[%clk 0:02:28]} 14. Qxd5 {[%clk 0:01:50]}  Be6 {[%clk 0:02:27]} 15. Qb5 {[%clk 0:01:49]}  Rab8 {[%clk 0:02:24]} 16. Rac1 {[%clk 0:01:37]}  Rfd8 {[%clk 0:02:22]} 17. Rfe1 {[%clk 0:01:31]}  Rd3 {[%clk 0:02:10]} 18. Ne5 {[%clk 0:01:24]}  Rd2 {[%clk 0:02:02]} 19. f4 {[%clk 0:01:15]}  Nxe5 {[%clk 0:02:01]} 20. Rxe5 {[%clk 0:01:04]}  Rbd8 {[%clk 0:01:51]} 21. Qxb7 {[%clk 0:00:53]}  Rxa2 {[%clk 0:01:40]} 22. Be4 {[%clk 0:00:31]}  g6 {[%clk 0:01:39]} 23. Rc2 {[%clk 0:00:26]}  Rd1+ {[%clk 0:01:36]} 24. Kg2 {[%clk 0:00:22]}  Rxc2+ {[%clk 0:01:36]} 25. Bxc2 {[%clk 0:00:20]}  Rd2+ {[%clk 0:01:37]} 26. Kg1 {[%clk 0:00:20]}  Rxc2 {[%clk 0:01:37]} 27. Qxa7 {[%clk 0:00:18]}  Qd8 {[%clk 0:01:35]} 28. Re1 {[%clk 0:00:13]}  Qd2 {[%clk 0:01:34]} 29. Qb8+ {[%clk 0:00:12]}  Kh7 {[%clk 0:01:33]} 0-1


[Site "https://www.chess.com"]

[Event "Titled Tuesday Blitz October 11 Late 2022"]
[White "Salman, Pavel"]
[Black "Gonzalez, Francisco Silva"]
[WhiteFideId "24153753"]
[BlackFideId "1512285"]
[WhiteElo "2187"]
[BlackElo "2159"]
[Result "0-1"]
[Round "05"]
[TimeControl "180+1"]
[Date "2022.10.12"]
[WhiteClock "0:00:02"]
[BlackClock "0:00:44"]

1. Nf3 {[%clk 0:02:59]}  d5 {[%clk 0:02:59]} 2. g3 {[%clk 0:02:59]}  f6 {[%clk 0:02:56]} 3. Bg2 {[%clk 0:03:00]}  e5 {[%clk 0:02:56]} 4. d3 {[%clk 0:03:00]}  c6 {[%clk 0:02:56]} 5. O-O {[%clk 0:03:00]}  Bd6 {[%clk 0:02:55]} 6. Nbd2 {[%clk 0:03:01]}  Ne7 {[%clk 0:02:54]} 7. e4 {[%clk 0:03:01]}  O-O {[%clk 0:02:54]} 8. a4 {[%clk 0:03:00]}  a5 {[%clk 0:02:52]} 9. Re1 {[%clk 0:02:56]}  Bg4 {[%clk 0:02:42]} 10. h3 {[%clk 0:02:56]}  Bh5 {[%clk 0:02:39]} 11. g4 {[%clk 0:02:55]}  Bf7 {[%clk 0:02:39]} 12. Nh4 {[%clk 0:02:54]}  g6 {[%clk 0:02:37]} 13. Nf1 {[%clk 0:02:51]}  Na6 {[%clk 0:02:36]} 14. g5 {[%clk 0:02:45]}  f5 {[%clk 0:02:34]} 15. exf5 {[%clk 0:02:43]}  Nxf5 {[%clk 0:02:31]} 16. Nxf5 {[%clk 0:02:42]}  gxf5 {[%clk 0:02:31]} 17. Ng3 {[%clk 0:02:34]}  f4 {[%clk 0:02:30]} 18. Nf5 {[%clk 0:02:33]}  Bc7 {[%clk 0:02:26]} 19. Nh6+ {[%clk 0:02:11]}  Kg7 {[%clk 0:02:22]} 20. Nxf7 {[%clk 0:02:09]}  Rxf7 {[%clk 0:02:22]} 21. Qh5 {[%clk 0:02:09]}  Qd6 {[%clk 0:02:21]} 22. h4 {[%clk 0:02:01]}  Nb4 {[%clk 0:02:20]} 23. Re2 {[%clk 0:01:56]}  Qg6 {[%clk 0:02:17]} 24. Bf3 {[%clk 0:01:39]}  Re8 {[%clk 0:02:05]} 25. Ra3 {[%clk 0:01:24]}  e4 {[%clk 0:02:03]} 26. dxe4 {[%clk 0:01:20]}  dxe4 {[%clk 0:01:44]} 27. Qxg6+ {[%clk 0:01:20]}  hxg6 {[%clk 0:01:45]} 28. Rxe4 {[%clk 0:01:16]}  Rfe7 {[%clk 0:01:32]} 29. Rxe7+ {[%clk 0:00:53]}  Rxe7 {[%clk 0:01:32]} 30. Bd2 {[%clk 0:00:30]}  Nxc2 {[%clk 0:01:29]} 31. Rb3 {[%clk 0:00:27]}  Nd4 {[%clk 0:01:28]} 32. Bc3 {[%clk 0:00:27]}  Be5 {[%clk 0:01:26]} 33. Bxd4 {[%clk 0:00:25]}  Bxd4 {[%clk 0:01:26]} 34. Kg2 {[%clk 0:00:23]}  Bc5 {[%clk 0:01:22]} 35. h5 {[%clk 0:00:14]}  gxh5 {[%clk 0:01:21]} 36. Bxh5 {[%clk 0:00:15]}  Bb4 {[%clk 0:01:20]} 37. Rf3 {[%clk 0:00:14]}  Re5 {[%clk 0:01:19]} 38. Rxf4 {[%clk 0:00:13]}  Rxg5+ {[%clk 0:01:19]} 39. Rg4 {[%clk 0:00:13]}  Kf6 {[%clk 0:01:19]} 40. Rxg5 {[%clk 0:00:14]}  Kxg5 {[%clk 0:01:19]} 41. Bd1 {[%clk 0:00:14]}  Kf5 {[%clk 0:01:18]} 42. Kf3 {[%clk 0:00:15]}  Ke5 {[%clk 0:01:18]} 43. Ke3 {[%clk 0:00:15]}  Bc5+ {[%clk 0:01:17]} 44. Ke2 {[%clk 0:00:16]}  Bd4 {[%clk 0:01:17]} 45. b3 {[%clk 0:00:15]}  Kd5 {[%clk 0:01:17]} 46. f3 {[%clk 0:00:13]}  Kc5 {[%clk 0:01:17]} 47. Kd3 {[%clk 0:00:13]}  Bg7 {[%clk 0:01:15]} 48. f4 {[%clk 0:00:14]}  b5 {[%clk 0:01:15]} 49. f5 {[%clk 0:00:13]}  Kb4 {[%clk 0:01:15]} 50. Kc2 {[%clk 0:00:04]}  bxa4 {[%clk 0:01:10]} 51. bxa4 {[%clk 0:00:04]}  Kxa4 {[%clk 0:01:10]} 52. Bf3 {[%clk 0:00:04]}  Kb5 {[%clk 0:01:05]} 53. Kb3 {[%clk 0:00:04]}  a4+ {[%clk 0:01:05]} 54. Ka2 {[%clk 0:00:05]}  c5 {[%clk 0:01:02]} 55. Ka3 {[%clk 0:00:04]}  Bf8 {[%clk 0:01:00]} 56. f6 {[%clk 0:00:03]}  c4+ {[%clk 0:01:00]} 57. Ka2 {[%clk 0:00:04]}  Kb4 {[%clk 0:00:59]} 58. f7 {[%clk 0:00:04]}  Kc3 {[%clk 0:00:51]} 59. Bc6 {[%clk 0:00:03]}  a3 {[%clk 0:00:51]} 60. Bb5 {[%clk 0:00:03]}  Kb4 {[%clk 0:00:49]} 61. Bd7 {[%clk 0:00:03]}  Kc3 {[%clk 0:00:44]} 62. Be6 {[%clk 0:00:02]}  Kd3 {[%clk 0:00:44]} 63. Bf5+ {[%clk 0:00:02]}  Kd2 {[%clk 0:00:44]} 0-1


[Site "https://www.chess.com"]

[Event "Titled Tuesday Blitz October 11 Late 2022"]
[White "Sargsyan, Anna M."]
[Black "Melikhov, Evgeny V."]
[WhiteFideId "13308130"]
[BlackFideId "4122046"]
[WhiteElo "2284"]
[BlackElo "2169"]
[Result "1-0"]
[Round "05"]
[TimeControl "180+1"]
[Date "2022.10.12"]
[WhiteClock "0:01:08"]
[BlackClock "0:00:05"]

1. d4 {[%clk 0:02:53]}  Nf6 {[%clk 0:02:59]} 2. c4 {[%clk 0:02:52]}  e6 {[%clk 0:02:59]} 3. Nf3 {[%clk 0:02:52]}  d5 {[%clk 0:02:59]} 4. Nc3 {[%clk 0:02:52]}  Bb4 {[%clk 0:02:58]} 5. Bf4 {[%clk 0:02:48]}  O-O {[%clk 0:02:54]} 6. e3 {[%clk 0:02:49]}  c5 {[%clk 0:02:47]} 7. dxc5 {[%clk 0:02:47]}  Ne4 {[%clk 0:02:39]} 8. Rc1 {[%clk 0:02:45]}  Qa5 {[%clk 0:02:37]} 9. Qb3 {[%clk 0:02:40]}  Bxc3+ {[%clk 0:02:15]} 10. bxc3 {[%clk 0:02:39]}  Qxc5 {[%clk 0:02:14]} 11. cxd5 {[%clk 0:02:37]}  exd5 {[%clk 0:02:11]} 12. Bd3 {[%clk 0:02:37]}  Nc6 {[%clk 0:02:00]} 13. O-O {[%clk 0:02:35]}  Bg4 {[%clk 0:01:56]} 14. Bxe4 {[%clk 0:02:33]}  dxe4 {[%clk 0:01:53]} 15. Nd4 {[%clk 0:02:34]}  b6 {[%clk 0:01:34]} 16. h3 {[%clk 0:02:31]}  Bh5 {[%clk 0:01:30]} 17. Qa4 {[%clk 0:02:20]}  Na5 {[%clk 0:01:26]} 18. Nb3 {[%clk 0:02:12]}  Qc4 {[%clk 0:01:23]} 19. Qa3 {[%clk 0:02:05]}  Nxb3 {[%clk 0:01:19]} 20. axb3 {[%clk 0:02:06]}  Qc6 {[%clk 0:01:15]} 21. c4 {[%clk 0:02:03]}  Be2 {[%clk 0:01:13]} 22. Rfe1 {[%clk 0:02:02]}  Bd3 {[%clk 0:01:14]} 23. c5 {[%clk 0:01:53]}  bxc5 {[%clk 0:01:08]} 24. Rxc5 {[%clk 0:01:53]}  Qb6 {[%clk 0:01:04]} 25. Rec1 {[%clk 0:01:53]}  h6 {[%clk 0:01:03]} 26. Rc6 {[%clk 0:01:52]}  Qd8 {[%clk 0:00:54]} 27. Rc7 {[%clk 0:01:51]}  a6 {[%clk 0:00:51]} 28. Qc5 {[%clk 0:01:47]}  Qf6 {[%clk 0:00:48]} 29. Rc6 {[%clk 0:01:42]}  Qb2 {[%clk 0:00:41]} 30. Be5 {[%clk 0:01:39]}  Qxb3 {[%clk 0:00:39]} 31. Bxg7 {[%clk 0:01:33]}  Kxg7 {[%clk 0:00:35]} 32. Qe5+ {[%clk 0:01:31]}  f6 {[%clk 0:00:30]} 33. Qg3+ {[%clk 0:01:31]}  Kh7 {[%clk 0:00:22]} 34. Rc7+ {[%clk 0:01:32]}  Rf7 {[%clk 0:00:22]} 35. Rxf7+ {[%clk 0:01:32]}  Qxf7 {[%clk 0:00:22]} 36. Rc7 {[%clk 0:01:33]}  Qxc7 {[%clk 0:00:20]} 37. Qxc7+ {[%clk 0:01:34]}  Kg6 {[%clk 0:00:17]} 38. g4 {[%clk 0:01:33]}  a5 {[%clk 0:00:16]} 39. h4 {[%clk 0:01:30]}  h5 {[%clk 0:00:14]} 40. gxh5+ {[%clk 0:01:16]}  Kxh5 {[%clk 0:00:14]} 41. Qh7+ {[%clk 0:01:16]}  Kg4 {[%clk 0:00:13]} 42. Kg2 {[%clk 0:01:14]}  Ra6 {[%clk 0:00:08]} 43. h5 {[%clk 0:01:08]}  a4 {[%clk 0:00:08]} 44. Qg6+ {[%clk 0:01:06]}  Kh4 {[%clk 0:00:07]} 45. h6 {[%clk 0:01:07]}  a3 {[%clk 0:00:06]} 46. h7 {[%clk 0:01:07]}  Ra8 {[%clk 0:00:06]} 47. Qxf6+ {[%clk 0:01:07]}  Kg4 {[%clk 0:00:06]} 48. h8=Q {[%clk 0:01:07]}  Rxh8 {[%clk 0:00:05]} 49. Qxh8 {[%clk 0:01:08]} 1-0


[Site "https://www.chess.com"]